Cogmind - Beta 9.4 @@@ ROGUE MODE // 2020.01.14 @ 01:39:39 // Halloween2019/Abominations Player: Hermelin Result: Destroyed by as-75786 with Assembled F-torch Performance ------------- Evolutions (0) 0 Regions Visited (0) 0 Robots Destroyed (4) 20 Value Destroyed (0) 0 Prototype IDs (0) 0 Alien Tech Used (0) 0 Bonus (0) 0 TOTAL SCORE: 20 Bonus ------- None Cogmind --------- Core Integrity 0/250 Matter 275/300 Energy 62/140 System Corruption 4% Temperature Cool (20) Movement Hovering (76) Location -11/Scrapyard Parts ------- > --- POWER (1) -------- Light Deuterium Engine > --- PROPULSION (2) --- Combat Airjet Combat Airjet > --- UTILITY (2) ------ (None) > --- WEAPON (2) ------- (None) > --- INVENTORY (4) ---- Light Ion Engine Light Treads Light Treads Light Assault Rifle Peak State ------------ > --- POWER ------------ Light Deuterium Engine > --- PROPULSION ------- Combat Airjet Combat Airjet > --- UTILITY ---------- (None) > --- WEAPON ----------- (None) > --- INVENTORY -------- Light Ion Engine Light Treads Light Treads Light Assault Rifle [Rating: 13] Favorites ----------- Power Light Ion Engine Engine Light Ion Engine Propulsion Aluminum Leg Leg Aluminum Leg Hover Unit Combat Airjet Utility Small Storage Unit Storage Small Storage Unit Weapon Light Assault Rifle Ballistic Gun Light Assault Rifle Build | -11 ------- Run | Scr Slots Evolved . | . Power . | . Propulsion . | . Utility . | . Weapon . | . Parts Attached 9 | 9 Power 2 | 2 Engine 2 | 2 Core . | . Reactor . | . Propulsion 4 | 4 Treads . | . Leg 2 | 2 Wheel . | . Hover 2 | 2 Flight . | . Utility 1 | 1 Device . | . Storage 1 | 1 Processor . | . Hackware . | . Protection . | . Artifact . | . Weapon 2 | 2 Energy Gun . | . Energy Cannon . | . Ballistic Gun 2 | 2 Ballistic Cannon . | . Launcher . | . Special Weapon . | . Impact Weapon . | . Slashing Weapon . | . Piercing Weapon . | . Special Melee Weapon . | . Unidentified Prototypes . | . Parts Lost 6 | 6 Power 1 | 1 Propulsion 2 | 2 Utility 1 | 1 Weapon 2 | 2 Highest Loss Streak 6 | 6 Average Slot Usage (%) . | . Naked Turns . | . Heaviest Build 10 | 10 Greatest Support 44 | 44 Greatest Overweight (x) 1 | 1 Average Overweight (x) . | . Largest Inventory Capacity 6 | 6 Average Capacity 5 | 5 Most Carried 4 | 4 Average Carried 3 | 3 Final Capacity 4 | 4 Final Carried 4 | 4 Class Distribution -------------------- None Dominant Class ---------------- None Resources | -11 ----------- Run | Scr Matter Collected 327 | 327 Remotely . | . Salvage Created 46 | 46 Parts . | . Haulers Intercepted . | . Recyclers Shooed . | . Parts Field Recycled . | . Retrieved Matter . | . Parts Self-Destructed . | . Prevented . | . Kills | -11 ------- Run | Scr Combat Hostiles Destroyed 4 | 4 Guns 4 | 4 Classes Destroyed 1 | 1 Assembled 4 | 4 Best Kill Streak 3 | 3 Combat Bots Only 3 | 3 Max Kills in Single Turn 1 | 1 Gunslinging . | . Exploded . | . Melee . | . Uniques/NPCs Destroyed . | . Combat | -11 -------- Run | Scr Damage Taken 865 | 865 Core 254 | 254 Absorbed by Shields . | . Core Remaining (%) . | . Volleys Fired 18 | 18 Largest 2 | 2 Hottest 40 | 40 Shots Fired 36 | 36 Gun 36 | 36 Cannon . | . Launcher . | . Special . | . Kinetic 36 | 36 Thermal . | . Explosive . | . Electromagnetic . | . Robot Hit Streak 10 | 10 Robot Miss Streak 2 | 2 Penetration Max . | . Secondary Targets 1 | 1 Max Gunslinging Chain 1 | 1 Shots Hit Robots 22 | 22 Core Hits 9 | 9 Critical Hits . | . Critical Kills . | . Critical Parts Destroyed . | . Melee Attacks . | . Impact . | . Slashing . | . Piercing . | . Sneak Attacks . | . Combat Hostiles . | . Follow-up Attacks . | . Damage Inflicted 219 | 219 Guns 213 | 213 Cannons . | . Explosions . | . Melee . | . Ramming 6 | 6 Kinetic 213 | 213 Thermal . | . Explosive . | . Electromagnetic . | . Impact . | . Slashing . | . Piercing . | . Highest Corruption 4 | 4 Average Corruption 3 | 3 Corruption Purged . | . Effects 1 | 1 Matter Fused 1 | 1 Overload Shots . | . Overflow Damage . | . Projectiles . | . Explosions . | . Melee . | . Knockbacks . | . Impact . | . Kinetic . | . Secondary . | . Self-Inflicted Damage 2 | 2 Shots . | . Rammed 2 | 2 Targets Rammed 3 | 3 Kicked 1 | 1 Crushed . | . Highest Temperature 20 | 20 Average Temperature 20 | 20 Received Heat Transfer 160 | 160 Siege Activations . | . Robots Corrupted . | . Combat Hostiles . | . Parts Fried . | . Impact Corruptions . | . Robots Melted . | . Combat Hostiles . | . Parts Melted . | . Heat Transferred . | . Parts Sabotaged . | . Parts Stolen . | . Parts Stripped . | . Power Chain Reactions . | . Missiles Intercepted . | . Alert | -11 ------- Run | Scr Peak Influence . | . Average Influence . | . Maximum Alert Level . | . Low Security (%) 100 | 100 Level 1 . | . Level 2 . | . Level 3 . | . Level 4 . | . Level 5 . | . High Security . | . Max Security . | . Squads Dispatched . | . Investigation . | . Extermination . | . Reinforcement . | . Assault . | . Garrison . | . Intercept . | . Construction Impeded . | . Haulers Reinforced . | . Stealth | -11 --------- Run | Scr Distress Signals . | . Communications Jammed . | . Distress Signals . | . Times Spotted 11 | 11 Peak Tracking Total 7 | 7 Tactical Retreats . | . Traps | -11 ------- Run | Scr Traps Triggered . | . Indirectly . | . Trap Hack Attempts . | . Triggered . | . Disarmed . | . Reprogrammed . | . Reused . | . Traps Extracted . | . Installed . | . Triggered . | . Machines | -11 ---------- Run | Scr Machines Disabled . | . Max in Single Turn . | . Machines Sabotaged . | . Garrisons Compromised . | . Overloaded Fab Kills . | . Fab Network Shutdowns . | . Hacking | -11 --------- Run | Scr Machines Accessed . | . Terminals . | . Fabricators . | . Repair Stations . | . Recycling Units . | . Scanalyzers . | . Garrison Access . | . Total Hacks . | . Successful . | . Failed . | . Catastrophic . | . Database Lockouts . | . Manual . | . Terminals . | . Fabricators . | . Repair Stations . | . Recycling Units . | . Scanalyzers . | . Garrison Access . | . Terminal Hacks . | . Fabricator Hacks . | . Repair Station Hacks . | . Recycling Unit Hacks . | . Scanalyzer . | . Garrison Access Hacks . | . Unauthorized Hacks . | . Terminals . | . Fabricators . | . Repair Stations . | . Recycling Units . | . Scanalyzers . | . Garrison Access . | . Data Cores Recovered . | . Used . | . Hacking Detections . | . Full Trace Events . | . Feedback Events . | . Feedback Blocked . | . Robot Schematics Acquired . | . Robots Built . | . Matter . | . Time . | . Total Robot Build Rating . | . Part Schematics Acquired . | . Parts Built . | . Matter . | . Time . | . Total Part Build Rating . | . Parts Repaired . | . Time . | . Parts Recycled . | . Recycled Matter . | . Retrieved Matter . | . Retrieved Components . | . Parts Scanalyzed . | . Part Schematics Acquired . | . Parts Damaged . | . Bothacking | -11 ------------ Run | Scr Used RIF Installer . | . Robots Hacked . | . Non-combat . | . Combat . | . Robot Hacks Applied . | . Relay Couplers Released . | . Robots Rewired . | . Allies Hacked . | . Hacks Repelled . | . Allies | -11 -------- Run | Scr Total Allies . | . Largest Group . | . Highest-Rated Group . | . Highest-Rated Ally . | . Total Orders . | . Ally Attacks . | . Total Damage . | . Kills . | . Allies Corrupted . | . Allies Melted . | . Intel | -11 ------- Run | Scr Robot Analysis Total . | . Derelict Logs Recovered . | . Drone Launches . | . Drone Recoveries . | . Exploration | -11 ------------- Run | Scr Turns Passed 3865 | 3865 Spaces Moved 250 | 250 Core 8 | 8 Treads . | . Legs 241 | 241 Wheels . | . Hover 1 | 1 Flight . | . Fastest Speed 50 | 50 Average Speed 118 | 118 Slowest Speed 120 | 120 Overloaded Moves . | . Propulsion Burnouts . | . Robots Hopped . | . Cave-ins Triggered . | . Exploration Rate (%) 33 | 33 Regions Visited . Branch Regions . Pre-discovered Areas . | . Known Exits Taken . | . Unknown Exits Taken . | . Scrap Searched . | . Spaces Dug . | . Terrain Destroyed . | . Melee . | . Projectile . | . AOE . | . Actions | -11 --------- Run | Scr Total 3783 | 3783 Wait 3499 | 3499 Move 250 | 250 Hop . | . Pick Up 4 | 4 Fast Attach 9 | 9 Attach . | . Detach . | . Swap . | . Drop . | . Fire 18 | 18 Melee . | . Ram 1 | 1 Kick 2 | 2 Crush . | . Escape Stasis . | . Rewire . | . Trap . | . Miscellaneous . | . Route ------- -11/Scrapyard (discovered 1 exit: [*Mat]) History --------- Turn | Location | Event 25 | -11/Scrapyard | Discovered new exit (range 15) 3691 | -11/Scrapyard | Assembled infested the area 3859 | -11/Scrapyard | Core integrity fell below 50% 3862 | -11/Scrapyard | Core integrity fell below 20% 3866 | -11/Scrapyard | Destroyed by as-75786 with Assembled F-torch Last Messages --------------- 03839_ Lgt. Ion Engine destroyed. 03844_ Aluminum Leg destroyed. 03848_ Assault Rifle destroyed. 03851_ Acquired 48 matter. 03852_ Lgt. Assault Rifle destroyed. 03855_ Kicked as-53341 out of the way. 03856_ Slammed into as-53341. 03857_ Aluminum Leg destroyed. 03857_ System corrupted by crushing effect (+3). 03858_ System corrupted: Matter fused (-10). 03858_ Acquired 10 matter. 03858_ Knocked back. 03860_ Sml. Storage Unit destroyed. 03860_ System corrupted by crushing effect (+1). 03860_ Knocked back. 03861_ Acquired Cmb. Airjet. 03861_ Knocked back. 03862_ Acquired Cmb. Airjet. 03865_ Acquired Lgt. Deuterium Engine. 03866_ Slammed into as-34224. Map ----- +----------------------------------------------------+ | ?????????????????????????????????????????????????? | | ?????????????????????????????????????????????????? | | ?????????????????????????????????????????????????? | | ?????????????????????????????????????????????????? | | ?????????????????????????????????????????????????? | | ?????????????????????????????????????????????????? | | ?????????????????????????????????????????????????? | | ?????????????????????????????????????????????????? | | ?????????????????????????????????????????????????? | | ????????????????????????? ??????????????????????? | | ????????????????????????? ??????????????????????? | | ????????????????????????? ??????????????????????? | | ?????????????????????????*|#?????????????????????? | | ????????????????????????#=%#?????????????????????? | | ????????????????????????# =#?????????????????????? | | ????#####???????????????# ?????????????????????? | | ????# ##??????????????# #?????????????????????? | | ????# #??????????????# #?????????????????????? | | ????# #???????######?# ########??????????????? | | ????# #???????# ?# # #??????????????? | | ????# #???????# # # #??????????????? | | ????# #???????# # a# #??????????????? | | ????# #???????# #??????????????? | | ????# #???????# # #??????????????? | | ????# #??????????# aa! #?????????????????# | | ?##### #######??????### #@a* ##?????????????????# | | ?# ########?# a%] #?????????????????? | | ?# # #?# a! ##??????????????????# | | ?# # #?###%a###???????????????????# | | ?# # #???#= #??????????????????#### | | ?# # #???# %#?????##########???# | | ?# # #???# %#?????# #???# | | ?# # ?????# #?????# #???# | | ?# ### ######## %####### ##### | | ?# % = | | | ?# ! =% | | ?# ### ############# ###%* ! ##### | | ?# # ????????? # #???# | | ?# # ??????? # #???#### | | ?## # #????? #### ####??????? | | ??# # #???# #??# #?????????? | | ??# # #???# #??# #?????????? | | ??# # #???# #??# #?????????? | | ??# ########???# #??# #?????????? | | ??# #??????????# #??# ?????????? | | ??# #???????## #??# ?????????? | | ??# ### ## ## ????????#########??#####????????? | | #?# #? # #??????????????????????????????? | | ?# #? #? #??????????????????????????????? | | # ## #?## #??????????????????????????????? | +----------------------------------------------------+ Best States ------------- Heat Dissipation 25 Energy Generation 10 Energy Capacity 125 Matter Stores 300 Matter Capacity 300 Sight Range 16 Terrain Scan Density 10 Evasion (%) 40 Item Schematics ----------------- None Robot Schematics ------------------ None Fabricated ------------ Nothing Alien Tech Used ----------------- None Achievements -------------- Curiosity Killed The Cat Challenges ------------ None Game ------ Seed GuidedAerolevStorm Manual? 0 Play Time 00:13:54 Cumulative 17.7 hours Start 2020.01.14 @ 01:31:45 End 2020.01.14 @ 01:39:39 Sessions 0 Manual Loads 0 Difficulty Rogue Special Mode Halloween2019/Abominations Game No. 8 Rogue 8 Adventurer 0 Explorer 0 Win Type - Total 0 Types 0/0/0/0/0/0/0 Lore% 40 Gallery% 19 Achievement% 32 Wizard Run 0 Options --------- ASCII 0 Keyboard 0 Movement Mouse Keybinds 0 Fullscreen 1 Font 14/SmallcapsGlow Map View 84x54 Tactical HUD 1 Map Filters NONE Filters NONE Steam 1 RUN: 54cadbb0-97c5-4a9e-bb18-d6a6e0245570